lending/lending_fUSD_20240112
["ID","MTS","AMOUNT","RATE_DAILY","PERIOD"]
[311435606,1705101039203,-266.90586008,0.00022664,2]
[311435607,1705101039212,-43284.45513285,0.00022765,2]
[311435608,1705101039223,-67990.4945993,0.00022765,2]
[311435609,1705101039236,-417.74338871,0.00022765,2]
[311435610,1705101039251,-3923.54468742,0.00022765,2]
[311435611,1705101039282,-682214.28262659,0.00022765,2]
[311435612,1705101039295,-504472.2963901,0.00022766,2]
[311435613,1705101039304,-797.73,0.00022767,2]
[311435614,1705101039313,-41330.0,0.00022767,2]
[311435615,1705101039325,-2579.44686386,0.00022771,2]
[311435616,1705101039334,-528.32939016,0.00022783,2]
[311435617,1705101039343,-2486.97229079,0.00022783,2]
[311435618,1705101039353,-2525.95441018,0.00022783,2]
[311435619,1705101039363,-2745.65884649,0.00022783,2]
[311435620,1705101039374,-273.73240553,0.00022783,2]
[311435621,1705101039384,-4099.93908273,0.00022783,2]
[311435622,1705101039393,-19181.56080107,0.00022783,2]
[311435623,1705101039403,-2579.44686386,0.00022793,2]
[311435624,1705101039413,-2579.44686386,0.00022814,2]
[311435625,1705101039422,-2579.44686386,0.00022836,2]
[311435626,1705101039432,-5800.0,0.00022841,2]
[311435627,1705101039441,-528.32939016,0.00022841,2]
[311435628,1705101039451,-5800.0,0.00022849,2]
[311435629,1705101039461,-159.16,0.00022851,2]
[311435630,1705101039470,-2579.44686386,0.00022857,2]
[311435631,1705101039480,-5800.0,0.00022858,2]
[311435632,1705101039491,-351.94,0.00022861,2]
[311435633,1705101039500,-282.03376479,0.00022862,2]
[311435634,1705101039510,-58000.0,0.00022865,2]
[311435635,1705101039520,-5800.0,0.00022866,2]
[311435636,1705101039529,-58000.0,0.00022874,2]
[311435637,1705101039538,-5800.0,0.00022875,2]
[311435638,1705101039548,-2579.44686386,0.00022879,2]
[311435639,1705101039559,-58000.0,0.00022882,2]
[311435640,1705101039571,-5800.0,0.00022883,2]
[311435641,1705101039580,-58000.0,0.00022891,2]
[311435642,1705101039770,-5800.0,0.00022892,2]
[311435643,1705101039785,-58000.0,0.000229,2]
[311435644,1705101039794,-2579.44686386,0.000229,2]
[311435645,1705101039804,-5800.0,0.000229,2]
[311435646,1705101039813,-786.49919513,0.000229,2]
[311435647,1705101039823,-528.32939016,0.000229,2]
[311435648,1705101039832,-686.93636993,0.000229,2]
[311435649,1705101039841,-2486.97229079,0.000229,2]
[311435650,1705101039850,-2525.95441018,0.000229,2]
[311435651,1705101039859,-2745.65884649,0.000229,2]
[311435652,1705101039870,-273.73240553,0.000229,2]
[311435653,1705101039880,-4099.93908273,0.000229,2]
[311435654,1705101039890,-19181.56080107,0.000229,2]
[311435655,1705101039900,-42164.89708814,0.00022997,2]
[311435656,1705101039910,-162.07655107,0.00022998,2]
[311435657,1705101039919,-5618.0916962,0.00022998,2]
[311435658,1705101039929,-724.02279719,0.00022998,2]
[311435659,1705101039938,-239.23240074,0.00022999,2]
[311435660,1705101039948,-451.96819577,0.00022999,2]
[311435661,1705101039957,-150.0,0.00022999,2]
[311435662,1705101039967,-150.0,0.00022999,2]
[311435663,1705101039976,-150.0,0.00022999,2]
[311435664,1705101039986,-150.0,0.00022999,2]
[311435665,1705101039995,-150.0,0.00022999,2]
[311435666,1705101040005,-150.0,0.00022999,2]
[311435667,1705101040014,-150.0,0.00022999,2]
[311435668,1705101040024,-150.0,0.00022999,2]
[311435669,1705101040033,-150.0,0.00022999,2]
[311435670,1705101040043,-150.0,0.00022999,2]
[311435671,1705101040053,-150.0,0.00022999,2]
[311435672,1705101040062,-150.0,0.00022999,2]
[311435673,1705101040074,-150.0,0.00022999,2]
[311435674,1705101040083,-14011012.20171297,0.00023,2]
[311435675,1705101040096,-802285.7502523,0.00023,2]
[311435676,1705101040106,-933.03463795,0.00023,2]
[311435677,1705101040115,-433.47911193,0.00023,2]
[311435678,1705101040124,-21323.7769035,0.00023,2]
[311435679,1705101040163,-263477.85005223,0.00023,2]
[311435680,1705101040175,-937971.34649442,0.00023,2]
[311435681,1705101040199,-657.03541704,0.00023,2]
[311435682,1705101040219,-6998.6,0.00023,2]
[311435683,1705101040231,-1125.76649499,0.00023,2]
[311435684,1705101040243,-1042.0747437,0.00023,2]
[311435685,1705101040254,-3011.3631176,0.00023,2]
[311435686,1705101040266,-4450.4087247,0.00023,2]
[311435687,1705101040277,-5816.380635,0.00023,2]
[311435688,1705101040299,-641.46537,0.00023,2]
[311435689,1705101040315,-544.6798,0.00023,2]
[311435690,1705101040329,-1451.45259882,0.00023,2]
[311435691,1705101040340,-10819.98050666,0.00023,2]
[311435692,1705101040352,-468.50164004,0.00023,2]
[311435693,1705101040383,-337.16451685,0.00023,2]
[311435695,1705101041533,-727.84599298,0.00023,2]
[311435696,1705101041545,-4638.0,0.00023,2]
[311435697,1705101041569,-837.28981923,0.00023,2]
[311435698,1705101041589,-85466.19707528,0.00023,2]
[311435699,1705101041600,-1085.28967512,0.00023,2]
[311435700,1705101041611,-4978.16417335,0.00023,2]
[311435701,1705101041623,-6197.60037619,0.00023,2]
[311435702,1705101041709,-165.97418147,0.00022664,2]
[311435703,1705101041718,-4649.42040253,0.00023,2]
[311435704,1705101041734,-4689.72122214,0.00023,2]
[311435705,1705101041745,-863.1268851,0.00023,2]
[311435706,1705101041757,-17879.11843351,0.00023,2]
[311435708,1705101041768,-744.83901285,0.00023,2]
[311435710,1705101041780,-1112.6698777,0.00023,2]
[311435713,1705101041795,-500.0,0.00023,2]
[311435758,1705101043514,-2200.78095,0.00023,2]
[311435761,1705101043530,-12740.3716712,0.00023,2]
[311435763,1705101043543,-638.24519042,0.00023,2]
[311435766,1705101043556,-4194.56626742,0.00023,2]
[311435768,1705101043568,-4420.24391406,0.00023,2]
[311435770,1705101043582,-3013.77416408,0.00023,2]
[311435773,1705101043594,-2429.4102933,0.00023,2]
[311435778,1705101043628,-418.5000016,0.00023,2]
[311435780,1705101043641,-1480.28080677,0.00023,2]
[311435783,1705101043657,-256.81548211,0.00023,2]
[311435785,1705101043669,-1224.1463558,0.00023,2]
[311435805,1705101046382,-251378.2682523,0.00023,2]
[311435806,1705101046394,-20362.12890122,0.00023,2]
[311435807,1705101046406,-599.428,0.00023,2]
[311435808,1705101046448,-4567.221464,0.00023,2]
[311435809,1705101046460,-42632.93553027,0.00023,2]
[311435810,1705101046471,-515.40000015,0.00023,2]
[311435811,1705101046506,-2129.84935946,0.00023,2]
[311435812,1705101046519,-1843.80145246,0.00023,2]
[311435813,1705101046675,-165.97418147,0.00022665,2]
[311435814,1705101046687,-693.56145853,0.00023,2]
[311435815,1705101046730,-8577.32956,0.00023,2]
[311435824,1705101063648,207.0,0.00021395,2]
[311435825,1705101484902,207.0,0.00022152,2]
[311435826,1705101490340,276.27,0.00021396,2]
[311435828,1705101752170,1293.28838392,0.00022292,2]
[311435829,1705101888279,250.0,0.00022318,2]
[311435830,1705101913450,176.74,0.00022373,2]
[311435831,1705101922323,262.45,0.0002048,2]
[311435832,1705101977116,200.0,0.00022398,2]
[311435868,1705102033809,23900.0,0.00022341,2]
[311435872,1705102080829,2000.0,0.00022341,2]
[311435873,1705102089997,2705.0,0.00022274,2]
[311435874,1705102090338,840.0,0.00022274,2]
[311435875,1705102116334,322.87,0.00022326,2]
[311435876,1705102141178,1000.0,0.000225,2]
[311435908,1705102153497,1000.0,0.00022211,2]
[311435914,1705102157923,500.0,0.00022325,2]
[311436142,1705102191360,168.68,0.00022335,2]
[311436143,1705102213178,1000.0,0.00022211,2]
[311436144,1705102231193,945.63742891,0.00022211,2]
[311436174,1705102231538,-380.12326788,0.00022501,2]
[311436222,1705102233570,-113.90542015,0.00022501,2]
[311436224,1705102233581,-286.09457985,0.00022506,2]
[311436227,1705102233593,-1007.19380407,0.00022506,2]
[311436229,1705102233602,-160.97387742,0.00022561,2]
[311436231,1705102233611,-160.06,0.00022564,2]
[311436233,1705102233621,-150.0,0.00022661,2]
[311436235,1705102233630,-300.0,0.00022661,2]
[311436237,1705102233640,-10700.92964216,0.00022662,2]
[311436239,1705102233649,-155.49966614,0.00022669,2]
[311436241,1705102233658,-29.95808945,0.00022696,2]
[311436243,1705102233670,-1399.89198776,0.00022696,2]
[311436245,1705102233679,-262.45,0.00022744,2]
[311436247,1705102233689,-152.66418,0.0002277,2]
[311436249,1705102233698,-1953.52749829,0.0002277,2]
[311436255,1705102233743,-694.53098836,0.0002277,2]
[311436257,1705102233752,-5000.0,0.000228,2]
[311436259,1705102233761,-744.19261684,0.00022898,2]
[311436261,1705102233770,-33244.04900578,0.000229,2]
[311436262,1705102233780,-2169.58,0.000229,2]
[311436264,1705102233790,-688.18679575,0.000229,2]
[311436266,1705102233799,-499.99,0.00022969,2]
[311436268,1705102233809,-177.47706228,0.00022998,2]
[311436270,1705102233818,-246.39576141,0.00022998,2]
[311436273,1705102233828,-72756.0182372,0.00022998,2]
[311436275,1705102233837,-163.7690261,0.00022998,2]
[311436276,1705102233846,-207.56937403,0.00022998,2]
[311436278,1705102233855,-308.1829758,0.00022998,2]
[311436280,1705102233864,-404.88362659,0.00022999,2]
[311436282,1705102233873,-648.14779686,0.00022999,2]
[311436284,1705102233883,-398.84084642,0.00022999,2]
[311436286,1705102233892,-352.36870064,0.00022999,2]
[311436288,1705102233901,-371.09601366,0.00022999,2]
[311436291,1705102233911,-18758.26011156,0.00022999,2]
[311436293,1705102233920,-92144.34311211,0.00022999,2]
[311436301,1705102233987,-1458.80697684,0.00022999,2]
[311436303,1705102233998,-400.0,0.00022999,2]
[311436304,1705102234039,-8599.57810656,0.00022999,2]
[311436305,1705102234051,-644.81477819,0.00022999,2]
[311436306,1705102234062,-866.30438943,0.00022999,2]
[311436309,1705102234126,-370.7472,0.00022999,2]
[311436312,1705102234148,-322.73533273,0.00022999,2]
[311436420,1705102237577,-21982.51198995,0.00022999,2]
[311436421,1705102237589,-7733.54889835,0.00022999,2]
[311436422,1705102237636,-911.322572,0.00022999,2]
[311436423,1705102237647,-290.46799996,0.00022999,2]
[311436424,1705102237694,-11964.00652392,0.00022999,2]
[311436425,1705102237706,-47370.74397241,0.00022999,2]
[311436426,1705102237717,-22721.04627418,0.00022999,2]
[311436427,1705102237729,-472.47,0.00022999,2]
[311436428,1705102237849,-112339.14910521,0.00022999,2]
[311436429,1705102237861,-5679.32283935,0.00022999,2]
[311436430,1705102237881,-168652.87056908,0.00022999,2]
[311436431,1705102237890,-688382.33541194,0.00023,2]
[311436432,1705102237901,-100587.28562226,0.00023,2]
[311436433,1705102237911,-933.03463795,0.00023,2]
[311436434,1705102237920,-2000.0,0.00023,2]
[311436436,1705102237929,-200.0,0.00023,2]
[311436438,1705102237938,-192.2,0.00023,2]
[311436440,1705102237948,-1293.28838392,0.00023048,2]
[311436442,1705102237957,-207.0,0.00023064,2]
[311436444,1705102237966,-150.0,0.00023075,2]
[311436446,1705102237975,-1429.85007722,0.00023091,2]
[311436448,1705102237985,-160.06,0.00023171,2]
[311436450,1705102237994,-160.0,0.00023187,2]
[311436452,1705102238002,-156.02,0.00023278,2]
[311436454,1705102238011,-322.87,0.00023305,2]
[311436456,1705102238023,-153.83,0.00023458,2]
[311436458,1705102238033,-160.06,0.00023777,2]
[311436460,1705102238044,-156.02,0.00023819,2]
[311436462,1705102238053,-430.99724455,0.00024,2]
[311436464,1705102238061,-3821.0,0.00024,2]
[311436466,1705102238070,-44338.0,0.00024,2]
[311436468,1705102238078,-155.37292417,0.000241,2]
[311436470,1705102238087,-150.82,0.00024223,2]
[311436472,1705102238097,-322.87,0.00024283,2]
[311436474,1705102238106,-168.21,0.00024297,2]
[311436476,1705102238115,-160.06,0.00024383,2]
[311436478,1705102238124,-150.82,0.00024569,2]
[311436480,1705102238134,-420.0,0.00024608,2]
[311436482,1705102238143,-250.0,0.00024658,2]
[311436484,1705102238152,-150.82,0.00024915,2]
[311436486,1705102238162,-160.06,0.0002499,2]
[311436488,1705102238172,-533.29554922,0.00025,2]
[311436490,1705102238181,-201.78427875,0.00025,2]
[311436492,1705102238190,-303.07385153,0.00025,2]
[311436494,1705102238198,-8038.54135472,0.00025,2]
[311436496,1705102238208,-802.72193781,0.00025,7]
[311436498,1705102238218,-350.0,0.00025,3]
[311436500,1705102238227,-262.45,0.00025008,2]
[311436502,1705102238237,-840.0,0.00025059,2]
[311436504,1705102238246,-153.83971389,0.0002509,2]
[311436506,1705102238255,-1320.37336621,0.000251,2]
[311436508,1705102238264,-175.46,0.00025153,2]
[311436510,1705102238274,-150.82,0.00025261,2]
[311436512,1705102238283,-322.87,0.00025262,2]
[311436514,1705102238294,-688.18679574,0.00025314,2]
[311436516,1705102238304,-160.06,0.00025596,2]
[311436518,1705102238313,-150.82,0.00025607,2]
[311436520,1705102238323,-150.82,0.00025953,2]
[311436522,1705102238332,-150.0,0.00026079,2]
[311436524,1705102238341,-160.0,0.00026085,2]
[311436526,1705102238351,-207.0,0.00026142,6]
[311436528,1705102238360,-160.06,0.00026203,2]
[311436531,1705102238370,-322.87,0.0002624,2]
[311436533,1705102238380,-150.82,0.00026299,2]
[311436535,1705102238389,-3067.18,0.00026575,2]
[311436537,1705102238399,-6120.54,0.00026575,2]
[311436539,1705102238408,-150.82,0.00026645,2]
[311436541,1705102238417,-587.0,0.00026723,2]
[311436543,1705102238426,-160.06,0.00026809,2]
[311436545,1705102238436,-274.69213419,0.00027,2]
[311436547,1705102238444,-416.34117686,0.00027,2]
[311436549,1705102238453,-400.0,0.00027,3]
[311436551,1705102238463,-3994.29704207,0.00027,2]
[311436553,1705102238472,-322.87,0.00027219,2]
[311436555,1705102238481,-262.45,0.00027272,2]
[311436557,1705102238490,-250.0,0.00027397,2]
[311436559,1705102238499,-250.0,0.000274,2]
[311436561,1705102238508,-151.76,0.000274,2]
[311436563,1705102238517,-151.76,0.000274,2]
[311436565,1705102238525,-1066.56914214,0.00027591,2]
[311436567,1705102238537,-688.18679574,0.00027729,3]
[311436569,1705102238546,-840.0,0.00027843,2]
[311436570,1705102238556,-357.99084569,0.00027874,2]
[311436571,1705102238565,-687.85574589,0.00028,2]
[311436572,1705102238574,-203.59459006,0.00028,2]
[311436573,1705102238584,-322.87,0.00028197,2]
[311436574,1705102238593,-168.21,0.00028307,2]
[311436575,1705102238604,-1916.029,0.00028343,2]
[311436576,1705102238613,-839.0,0.00028343,2]
[311436577,1705102238623,-2913.689,0.00028343,2]
[311436578,1705102238632,-944.0,0.00028343,2]
[311436579,1705102238641,-1268.0,0.00028343,2]
[311436581,1705102238651,-200.0,0.00028799,5]
[311436583,1705102238660,-155.0,0.000288,2]
[311436585,1705102238669,-160.0,0.00028984,2]
[311436587,1705102238679,-450.0,0.00029,3]
[311436589,1705102238688,-223.0,0.00029019,2]
[311436591,1705102238697,-322.87,0.00029176,2]
[311436593,1705102238706,-207.0,0.0002922,11]
[311436595,1705102238718,-199.592,0.00029322,2]
[311436597,1705102238727,-173.187,0.00029322,2]
[311436599,1705102238736,-1931.0,0.00029322,2]
[311436601,1705102238745,-425.0,0.00029322,2]
[311436603,1705102238754,-884.0,0.00029322,2]
[311436605,1705102238763,-235.0,0.00029322,2]
[311436607,1705102238772,-162.505,0.00029322,2]
[311436609,1705102238781,-370.927,0.00029322,2]
[311436611,1705102238792,-4002.437,0.00029322,2]
[311436613,1705102238802,-1354.0,0.00029322,2]
[311436615,1705102238811,-1303.577,0.00029322,2]
[311436617,1705102238820,-41885.0,0.00029322,2]
[311436619,1705102238829,-2218.428,0.00029322,2]
[311436621,1705102238839,-2264.0,0.00029322,2]
[311436623,1705102238848,-19668.0,0.00029322,2]
[311436625,1705102238857,-262.744,0.00029322,2]
[311436627,1705102238866,-150.0,0.00029322,2]
[311436629,1705102238875,-346.22363233,0.00029347,5]
[311436631,1705102238885,-395.80894983,0.000294,2]
[311436633,1705102238895,-395.8089498,0.000294,2]
[311436635,1705102238904,-395.8089498,0.000294,2]
[311436637,1705102238913,-395.8089498,0.000294,2]
[311436639,1705102238923,-395.8089498,0.000294,2]
[311436641,1705102238932,-395.8089498,0.000294,2]
[311436643,1705102238941,-395.8089498,0.000294,2]
[311436645,1705102238950,-395.8089498,0.000294,2]
[311436647,1705102238959,-19105.65798421,0.000295,2]
[311436649,1705102238968,-262.45,0.00029536,2]
[311436651,1705102238977,-228.97878999,0.0002969,2]
[311436653,1705102238986,-55555.0,0.000297,2]
[311436655,1705102238995,-38918.7394997,0.0002978,2]
[311436657,1705102239005,-151.76,0.00029789,2]
[311436659,1705102239017,-6348.94528104,0.00029797,2]
[311436662,1705102239026,-6348.94528104,0.00029797,2]
[311436664,1705102239037,-200.90716875,0.00029799,2]
[311436666,1705102239045,-500.0,0.00029799,2]
[311436668,1705102239054,-607.42505339,0.00029799,2]
[311436670,1705102239063,-500.0,0.00029799,2]
[311436672,1705102239072,-219.36140277,0.00029799,2]
[311436674,1705102239081,-500.0,0.00029799,2]
[311436676,1705102239091,-500.0,0.00029799,2]
[311436678,1705102239100,-175.2741689,0.000298,2]
[311436680,1705102239110,-408660.45283455,0.000298,2]
[311436716,1705102239877,-263477.85005223,0.000298,2]
[311436723,1705102240629,-269.81473939,0.00028343,2]
[311436724,1705102240653,-430.18526061,0.00028343,2]
[311436725,1705102240663,-1234.0,0.00028343,2]
[311436726,1705102240672,-4112.52774134,0.000298,2]
[311436727,1705102240683,-578.06080476,0.000298,2]
[311436728,1705102240695,-3050.47326885,0.000298,2]
[311436729,1705102240813,-1780.95270064,0.000298,2]
[311436730,1705102240825,-301.57238638,0.000298,2]
[311436731,1705102240837,-4339.29761637,0.000298,2]
[311436732,1705102240871,-8448.62736,0.000298,2]
[311436738,1705102242552,-395.8089498,0.000294,2]
[311436739,1705102242562,-500.0,0.00029799,2]
[311436740,1705102242571,-289.694811,0.00029799,2]
[311436741,1705102242580,-6379.32357464,0.000298,2]
[311436742,1705102242662,-4308.12438,0.000298,2]
[311436743,1705102242681,-24013.60141825,0.000298,2]
[311436744,1705102242761,-255.885412,0.000298,2]
[311436745,1705102242772,-756.1077999,0.000298,2]
[311436746,1705102242791,-2581.95359998,0.000298,2]
[311436749,1705102245704,-457.57599352,0.00029799,2]
[311436750,1705102245715,-859.39536,0.00029799,2]
[311436751,1705102245726,-1399.3074867,0.00029799,2]
[311436752,1705102245735,-6880.38783732,0.000298,2]
[311436753,1705102245781,-854.93787505,0.000298,2]
[311436754,1705102245813,-272.14447481,0.000298,2]
[311436755,1705102245828,-435.0,0.000298,2]
[311436756,1705102245840,-2505.12168228,0.000298,2]
[311436757,1705102245851,-548.21710077,0.000298,2]
[311436758,1705102245919,-151.75,0.0002979,2]
[311436759,1705102245928,-9919.72825366,0.000298,2]
[311436760,1705102245939,-695.22747085,0.000298,2]
[311436761,1705102245951,-915.1329861,0.000298,2]
[311436763,1705102245966,-587.2050527,0.000298,2]
[311436768,1705102369576,327.8738,0.00022406,2]
[311436769,1705102564610,206.0,0.00022064,2]
[311436771,1705102746517,-1000.0,0.00022795,2]
[311436772,1705102746539,-762.90238041,0.00022796,2]
[311436773,1705102746563,-161.95122084,0.00022797,2]
[311436774,1705102746585,-150.0,0.00022797,2]
[311436775,1705102746607,-300.0,0.00022797,2]
[311436776,1705102746629,-9110.458,0.00022798,2]
[311436777,1705102746652,-2658.2278,0.00022798,2]
[311436778,1705102746674,-4928.7792,0.00022798,2]
[311436779,1705102759256,887.95145222,0.00022208,2]
[311436780,1705102773068,729.7838,0.00022797,2]
[311436781,1705102911053,2500.0,0.00022798,2]
[311436782,1705102918524,4968.1672,0.00022797,2]
[311436784,1705103025203,1000.0,0.00022798,2]
[311436785,1705103038591,623.94741812,0.00022797,2]
[311436858,1705103320146,1000.0,0.00022208,2]
[311437087,1705103400180,200.1906815,0.00022097,2]
[311437102,1705103431734,-680.82565972,0.00022799,2]
[311437103,1705103431744,-327.45274585,0.00022799,2]
[311437104,1705103431754,-697.99,0.000228,2]
[311437105,1705103431764,-198.51848579,0.00022888,2]
[311437106,1705103431774,-155.0,0.00022896,2]
[311437107,1705103431784,-270.43448935,0.00022896,2]
[311437108,1705103431797,-157.11544536,0.00022896,2]
[311437109,1705103431808,-1066.56914214,0.00022897,2]
[311437110,1705103431818,-15968.54515818,0.00022897,2]
[311437111,1705103431842,-9492.0,0.00022897,2]
[311437112,1705103431854,-124558.35554403,0.00022897,2]
[311437113,1705103431865,-504924.79064027,0.00022898,2]
[311437114,1705103431874,-9494.3128,0.00022899,2]
[311437115,1705103431883,-18888.62808818,0.00022899,2]
[311437116,1705103431895,-1012.92672215,0.00022899,2]
[311437117,1705103431908,-528.87484806,0.00022899,2]
[311437118,1705103431919,-491.67029575,0.00022899,2]
[311437119,1705103431931,-391.73008624,0.00022899,2]
[311437120,1705103431954,-26735.97848677,0.00022899,2]
[311437121,1705103431967,-1486.33363793,0.00022899,2]
[311437122,1705103431979,-3779.1,0.00022899,2]
[311437123,1705103431990,-1644.41676654,0.00022899,2]
[311437124,1705103432002,-18063.3432365,0.00022899,2]
[311437125,1705103432026,-519.6705,0.00022899,2]
[311437126,1705103432039,-4289.41508,0.00022899,2]
[311437127,1705103432051,-1228.72334286,0.00022899,2]
[311437128,1705103432072,-2578.071,0.00022899,2]
[311437129,1705103432089,-18361.11790902,0.00022899,2]
[311437130,1705103432098,-206.0,0.00022982,2]
[311437131,1705103432108,-933.03463795,0.00023,2]
[311437132,1705103432118,-192.2,0.00023,2]
[311437133,1705103432128,-430.99724455,0.00024,2]
[311437134,1705103432138,-19944.06100318,0.00024,2]
[311437135,1705103432163,-2682.00063422,0.00024,2]
[311437149,1705103438451,-21711.9383626,0.00024,2]
[311437150,1705103438461,-2788.00135014,0.00024,2]
[311437152,1705103438472,-1032.99864986,0.00024,2]
[311437154,1705103438482,-499.99,0.00024,2]
[311437156,1705103438491,-278.14,0.00024557,2]
[311437158,1705103438500,-350.0,0.00025,3]
[311437160,1705103438508,-303.07385153,0.00025,2]
[311437162,1705103438517,-201.78427875,0.00025,2]
[311437163,1705103438526,-533.29554922,0.00025,2]
[311437165,1705103438536,-680.82565965,0.00025238,2]
[311437167,1705103438545,-151.86,0.00025798,2]
[311437169,1705103438554,-206.0,0.00026067,6]
[311437171,1705103438564,-151.86,0.00026084,2]
[311437173,1705103438573,-151.86,0.00026371,2]
[311437174,1705103438583,-2488.80194833,0.00026425,2]
[311437176,1705103438595,-2710.79805167,0.00026425,2]
[311437178,1705103438604,-200.0,0.00026439,2]
[311437180,1705103438613,-10666.44,0.00026451,2]
[311437182,1705103438622,-150.0,0.00026496,2]
[311437184,1705103438631,-250.0,0.00026532,2]
[311437186,1705103438641,-321.65,0.00026618,2]
[311437188,1705103438650,-336.0,0.00026637,2]
[311437190,1705103438659,-151.86,0.00026658,2]
[311437191,1705103438669,-156.49,0.00026673,2]
[311437193,1705103438678,-278.14,0.00026821,2]
[311437195,1705103438687,-4087.27,0.00026915,2]
[311437197,1705103438696,-151.86,0.00026944,2]
[311437199,1705103438705,-400.0,0.00027,3]
[311437201,1705103438714,-416.34117686,0.00027,2]
[311437202,1705103438723,-274.69213419,0.00027,2]
[311437204,1705103438732,-1674.95470427,0.00027,2]
[311437206,1705103438744,-2319.3423378,0.00027,2]
[311437208,1705103438754,-664.0,0.00027117,2]
[311437210,1705103438763,-151.86,0.00027231,2]
[311437212,1705103438772,-156.49,0.00027368,2]
[311437214,1705103438782,-250.0,0.00027397,2]
[311437216,1705103438794,-250.0,0.000274,2]
[311437217,1705103438802,-151.75,0.000274,2]
[311437219,1705103438812,-151.75,0.000274,2]
[311437221,1705103438821,-160.28,0.00027473,2]
[311437223,1705103438831,-151.86,0.00027518,2]
[311437225,1705103438840,-321.65,0.00027597,2]
[311437227,1705103438849,-680.82565965,0.00027677,3]
[311437229,1705103438858,-151.86,0.00027804,2]
[311437231,1705103438867,-168.21,0.00027936,2]
[311437233,1705103438876,-160.28,0.00027989,2]
[311437234,1705103438886,-687.85574589,0.00028,2]
[311437236,1705103438895,-156.49,0.00028063,2]
[311437238,1705103438904,-151.86,0.00028091,2]
[311437240,1705103438913,-151.86,0.00028377,2]
[311437242,1705103438922,-160.28,0.00028506,2]
[311437244,1705103438932,-321.65,0.00028575,2]
[311437246,1705103438941,-302.30920902,0.00028602,2]
[311437247,1705103438951,-200.0,0.00028696,5]
[311437249,1705103438960,-450.0,0.00029,3]
[311437251,1705103438971,-250.0,0.00029,2]
[311437253,1705103438982,-155.0,0.00029,2]
[311437255,1705103438991,-160.28,0.00029023,2]
[311437257,1705103438999,-278.14,0.00029085,2]
[311437258,1705103439009,-1354.0,0.00029102,2]
[311437260,1705103439018,-2218.428,0.00029102,2]
[311437262,1705103439026,-262.744,0.00029102,2]
[311437264,1705103439035,-839.0,0.00029102,2]
[311437266,1705103439047,-944.0,0.00029102,2]
[311437268,1705103439057,-2913.689,0.00029102,2]
[311437270,1705103439066,-1916.029,0.00029102,2]
[311437271,1705103439077,-1268.0,0.00029102,2]
[311437273,1705103439085,-1931.0,0.00029102,2]
[311437275,1705103439096,-425.0,0.00029102,2]
[311437277,1705103439105,-162.505,0.00029102,2]
[311437279,1705103439114,-235.0,0.00029102,2]
[311437281,1705103439124,-370.927,0.00029102,2]
[311437283,1705103439133,-884.0,0.00029102,2]
[311437285,1705103439143,-250.0,0.00029102,2]
[311437287,1705103439152,-27039.20704417,0.00029102,2]
[311437292,1705103439206,-14845.79295583,0.00029102,2]
[311437294,1705103439215,-1303.577,0.00029102,2]
[311437296,1705103439224,-4002.437,0.00029102,2]
[311437298,1705103439234,-8532.4741495,0.00029102,2]
[311437300,1705103439247,-11145.5258505,0.00029102,2]
[311437302,1705103439256,-2264.0,0.00029102,2]
[311437304,1705103439266,-197.0,0.00029102,2]
[311437306,1705103439275,-150.0,0.00029102,2]
[311437308,1705103439284,-156.0,0.00029102,2]
[311437309,1705103439295,-226.399,0.00029102,2]
[311437311,1705103439305,-250.0,0.00029102,2]